Cogmind - Beta 14 @@@ ROGUE MODE // 2025.01.05 @ 18:33:33 Player: Lord Earthfire Result: Destroyed by X-62 Marksman with Gauss Rifle Performance ------------- Evolutions (2) 1000 Regions Visited (4) 800 Robots Destroyed (32) 160 Value Destroyed (1092) 1092 Prototype IDs (1) 20 Alien Tech Used (0) 0 Bonus (0) 0 TOTAL SCORE: 3072 Bonus ------- None Cogmind --------- Core Integrity 0/550 Matter 300/300 Energy 62/100 System Corruption 0% Temperature Cool (0) Movement Core (400) Ox7 Location -8/Materials Parts ------- > --- POWER (2) -------- (None) > --- PROPULSION (3) --- (None) > --- UTILITY (4) ------ Large Storage Unit Structural Scanner > --- WEAPON (2) ------- Maul > --- INVENTORY (15) --- Large Storage Unit High-capacity Matter Pod (200) Seismic Detector Actuator Array Actuator Array Actuator Array Faulty Heavy EM Shotgun Peak State ------------ > --- POWER ------------ Ion Engine Improved Ion Engine > --- PROPULSION ------- Combat Airjet Combat Airjet Combat Airjet > --- UTILITY ---------- Medium Storage Unit Structural Scanner Experimental Sensor Array ECM Suite > --- WEAPON ----------- Flail Maul > --- INVENTORY -------- Improved Ion Engine High-capacity Matter Pod Seismic Detector Actuator Array Actuator Array Actuator Array Actuator Array EM Shotgun Spread Laser [Rating: 36] Favorites ----------- Power Ion Engine Engine Ion Engine Propulsion Combat Airjet Leg Aluminum Leg Wheel Wheel Hover Unit Combat Airjet Utility ECM Suite Device ECM Suite Storage Medium Storage Unit Weapon EMP Blaster Energy Gun EM Pulse Gun Ballistic Gun Minigun Launcher EMP Blaster Impact Weapon Maul Build | -11 -10 -10 -9 -8 ------- Run | Yrd Mat Min Mat Mat Slots Evolved 4 | . . . 2 2 Power 1 | . . . . 1 Propulsion 1 | . . . 1 . Utility 2 | . . . 1 1 Weapon . | . . . . . Parts Attached 47 | 5 15 6 10 11 Power 8 | 1 2 1 2 2 Engine 8 | 1 2 1 2 2 Core . | . . . . . Reactor . | . . . . . Propulsion 11 | 2 2 3 2 2 Treads . | . . . . . Leg 1 | . . . . 1 Wheel 5 | 2 2 . . 1 Hover 5 | . . 3 2 . Flight . | . . . . . Utility 12 | . 4 2 3 3 Device 8 | . 2 2 2 2 Storage 4 | . 2 . 1 1 Processor . | . . . . . Hackware . | . . . . . Protection . | . . . . . Artifact . | . . . . . Weapon 16 | 2 7 . 3 4 Energy Gun 6 | 2 1 . 2 1 Energy Cannon . | . . . . . Ballistic Gun 1 | . . . . 1 Ballistic Cannon . | . . . . . Launcher 6 | . 6 . . . Special Weapon . | . . . . . Impact Weapon 3 | . . . 1 2 Slashing Weapon . | . . . . . Piercing Weapon . | . . . . . Special Melee Weapon . | . . . . . Unidentified Prototypes 1 | . . 1 . . Corrupted Parts 3 | . 3 . . . System Corruption 7 | . 7 . . . Parts Lost 25 | . 9 . 3 13 Power 6 | . 2 . 1 3 Propulsion 7 | . 3 . . 4 Utility 3 | . . . . 3 Weapon 9 | . 4 . 2 3 Highest Loss Streak 5 | . 4 . 1 5 To Critical Strikes . | . . . . . Average Slot Usage (%) 80 | . 78 76 82 81 Engine 9 | . 8 3 11 10 Wheel 10 | . 21 11 . 1 Hover 10 | . . 5 22 20 Device 23 | . 20 28 22 26 Storage 5 | . 2 . 10 9 Energy Gun 6 | . 11 . 4 1 Launcher 10 | . 12 28 8 . Impact Weapon 3 | . . . 3 9 Peak Build Rating 36 | 5 9 26 34 36 Average Rating 15 | 3 6 13 24 25 On Entrance 14 | . 5 7 26 34 Naked Turns . | . . . . . Heaviest Build 45 | 7 16 14 25 45 Greatest Support 36 | 20 20 24 36 36 Greatest Overweight (x) 10 | . 3 1 1 10 Average Overweight (x) . | . . . . 1 Largest Inventory Capacity 15 | 5 10 5 10 15 Average Capacity 8 | 5 5 5 9 13 Most Carried 10 | 3 5 5 10 10 Average Carried 4 | 1 3 3 6 8 Final Capacity 15 | 5 5 5 10 15 Final Carried 10 | 3 2 5 10 7 Class Distribution -------------------- 55% | Infiltrator-Mutant 36% | Mutant 8% | Scavenger-Mutant Dominant Class ---------------- Infiltrator-Mutant | -10/Materials Mutant | -10/Mines Mutant | -9/Materials Infiltrator-Mutant | -8/Materials Resources | -11 -10 -10 -9 -8 ----------- Run | Yrd Mat Min Mat Mat Matter Collected 893 | 250 138 173 234 98 Remotely . | . . . . . Salvage Created 1119 | 37 224 30 239 589 Parts 43 | 1 19 5 10 8 Haulers Intercepted . | . . . . . Recyclers Shooed . | . . . . . Parts Field Recycled . | . . . . . Retrieved Matter . | . . . . . Parts Self-Destructed . | . . . . . Prevented . | . . . . . Kills | -11 -10 -10 -9 -8 ------- Run | Yrd Mat Min Mat Mat Combat Hostiles Destroyed 25 | 1 7 2 5 10 Melee 3 | . . . . 3 Guns 5 | 1 2 . 2 . AOE 9 | . 5 2 2 . Classes Destroyed 12 | 1 4 . 2 5 Worker 1 | . . . . 1 Builder 1 | . 1 . . . Recycler 1 | . . . . 1 Mechanic 1 | . . . . 1 Operator 1 | . 1 . . . Watcher 2 | . 1 . 1 . Swarmer 4 | . 2 2 . . Grunt 11 | 1 5 . 2 3 Duelist 1 | . . . 1 . Sentry 6 | . . . 2 4 Specialist 2 | . . . . 2 Hunter 1 | . . . . 1 Best Kill Streak 6 | 1 4 2 3 6 Combat Bots Only 5 | 1 3 2 3 5 Max Kills in Single Turn 2 | 1 2 2 2 1 Gunslinging . | . . . . . Exploded 2 | . 2 2 2 . Melee 1 | . . . . 1 Uniques/NPCs Destroyed . | . . . . . Combat | -11 -10 -10 -9 -8 -------- Run | Yrd Mat Min Mat Mat Hostile Shots Fired 242 | 3 67 9 24 139 Missed 72 | 1 20 6 14 31 Damage Taken 2828 | 22 682 64 251 1809 Core 789 | . 171 5 46 567 Absorbed by Shields . | . . . . . Core Remaining (%) 72 | 100 . 29 88 . Volleys Fired 37 | 3 22 1 10 1 Largest 2 | 2 2 2 1 1 Hottest 90 | 90 90 66 65 25 Shots Fired 55 | 6 36 2 10 1 Gun 35 | 6 22 . 6 1 Cannon . | . . . . . Launcher 20 | . 14 2 4 . Special . | . . . . . Kinetic 1 | . . . . 1 Thermal 18 | 3 10 . 5 . Explosive 4 | . 4 . . . Electromagnetic 32 | 3 22 2 5 . Robot Hit Streak 4 | 3 4 1 4 . Robot Miss Streak 4 | 1 3 1 4 1 Penetration Max . | . . . . . Secondary Targets 1 | . 1 . . . Max Gunslinging Chain 1 | . 1 . . . Shots Hit Robots 63 | 4 20 1 9 29 Core Hits 34 | 2 14 2 13 3 Critical Kills 2 | . . . . 2 Critical Parts Destroyed 7 | . . . . 7 Critical Strikes 10 | . . . . 10 Smash 10 | . . . . 10 Melee Attacks 36 | . . . 2 34 Impact 36 | . . . 2 34 Slashing . | . . . . . Piercing . | . . . . . Sneak Attacks 4 | . . . . 4 Combat Hostiles 1 | . . . . 1 Follow-up Attacks . | . . . . . Damage Inflicted 2563 | 53 802 46 442 1220 Guns 261 | 53 134 . 74 . Cannons . | . . . . . Explosions 1008 | . 668 46 294 . Melee 1294 | . . . 74 1220 Ramming . | . . . . . Kinetic . | . . . . . Thermal 419 | 13 89 . 317 . Explosive 293 | . 293 . . . Electromagnetic 557 | 40 420 46 51 . Impact 1294 | . . . 74 1220 Slashing . | . . . . . Piercing . | . . . . . Highest Corruption 8 | . 8 8 . . Average Corruption 7 | . 6 8 . . Corruption Purged . | . . . . . Corruption Blocked . | . . . . . Effects 16 | . 7 9 . . Message Errors 4 | . 2 2 . . Matter Fused 1 | . . 1 . . Heat Flow Errors 4 | . 4 . . . Energy Discharges 4 | . . 4 . . Data Loss (minor) 1 | . . 1 . . Data Loss (major) 2 | . 1 1 . . Overload Shots . | . . . . . Overflow Damage 608 | . 15 . 120 473 Projectiles . | . . . . . Explosions 131 | . 15 . 116 . Melee 477 | . . . 4 473 Knockbacks 4 | . . . . 4 Impact 4 | . . . . 4 Kinetic . | . . . . . Secondary . | . . . . . Self-Inflicted Damage 300 | . 200 . 100 . Shots 12 | . 11 . 1 . Rammed . | . . . . . Targets Rammed . | . . . . . Kicked . | . . . . . Crushed . | . . . . . Highest Temperature 249 | 102 249 . 22 14 Average Temperature 63 | 53 76 . 11 8 Received Heat Transfer 927 | 12 234 . 51 630 Siege Activations . | . . . . . Robots Corrupted 11 | . . . 1 10 Combat Hostiles 8 | . . . 1 7 Parts Fried 15 | . 1 . . 14 Impact Corruptions 20 | . . . 1 19 Robots Melted . | . . . . . Combat Hostiles . | . . . . . Parts Melted . | . . . . . Heat Transferred 460 | 37 198 . 225 . Parts Sabotaged . | . . . . . Parts Stolen . | . . . . . Parts Stripped . | . . . . . Power Chain Reactions 3 | . 2 1 . . Alert | -11 -10 -10 -9 -8 ------- Run | Yrd Mat Min Mat Mat Peak Influence 402 | 20 161 130 338 402 Initial 142 | . 13 62 50 142 Average 134 | 2 88 110 165 229 Maximum Alert Level 2 | . . . 1 2 Low Security (%) 75 | 100 100 100 62 29 Level 1 23 | . . . 37 67 Level 2 . | . . . . 2 Level 3 . | . . . . . Level 4 . | . . . . . Level 5 . | . . . . . High Security . | . . . . . Max Security . | . . . . . Squads Dispatched 8 | . 3 . 1 4 Investigation 4 | . 2 . . 2 Extermination . | . . . . . Reinforcement 3 | . 1 . . 2 Assault 1 | . . . 1 . Garrison . | . . . . . Intercept . | . . . . . Searches Triggered . | . . . . . Construction Impeded . | . . . . . Haulers Reinforced . | . . . . . Active Scanning Responses . | . . . . . Cargo Convoy Interrupts . | . . . . . Stealth | -11 -10 -10 -9 -8 --------- Run | Yrd Mat Min Mat Mat Distress Signals 7 | . 1 . 2 4 Communications Jammed . | . . . . . Distress Signals . | . . . . . Times Spotted 76 | 1 30 9 16 20 Peak Tracking Total 7 | 1 5 4 4 7 Tactical Retreats 19 | . 8 1 5 5 Traps | -11 -10 -10 -9 -8 ------- Run | Yrd Mat Min Mat Mat Traps Triggered 1 | . . . . 1 Indirectly . | . . . . . Trap Hack Attempts . | . . . . . Triggered . | . . . . . Disarmed . | . . . . . Reprogrammed . | . . . . . Reused . | . . . . . Traps Extracted . | . . . . . Installed . | . . . . . Triggered . | . . . . . Machines | -11 -10 -10 -9 -8 ---------- Run | Yrd Mat Min Mat Mat Machines Disabled 7 | . 3 . 4 . Max in Single Turn 1 | . 1 . 1 . Machines Repaired . | . . . . . Machines Dismantled . | . . . . . Machines Sabotaged . | . . . . . Overloaded Fab Kills . | . . . . . Hacking | -11 -10 -10 -9 -8 --------- Run | Yrd Mat Min Mat Mat Machines Accessed 5 | . 3 . 1 1 Terminals 4 | . 3 . 1 . Fabricators . | . . . . . Repair Stations . | . . . . . Recycling Units . | . . . . . Scanalyzers 1 | . . . . 1 Garrison Access . | . . . . . Total Hacks 23 | . 10 . 2 11 Successful 14 | . 4 . . 10 Failed 9 | . 6 . 2 1 Catastrophic 2 | . 1 . 1 . Database Lockouts . | . . . . . Manual . | . . . . . Terminals 12 | . 10 . 2 . Fabricators . | . . . . . Repair Stations . | . . . . . Recycling Units . | . . . . . Scanalyzers 11 | . . . . 11 Garrison Access . | . . . . . Terminal Hacks 4 | . 4 . . . Alert Level 3 | . 3 . . . Unreport Threat 1 | . 1 . . . Fabricator Hacks . | . . . . . Repair Station Hacks . | . . . . . Recycling Unit Hacks . | . . . . . Scanalyzer 10 | . . . . 10 Insert Component 5 | . . . . 5 Analyze 5 | . . . . 5 Garrison Access Hacks . | . . . . . Unauthorized Hacks . | . . . . . Terminals . | . . . . . Fabricators . | . . . . . Repair Stations . | . . . . . Recycling Units . | . . . . . Scanalyzers . | . . . . . Garrison Access . | . . . . . Data Cores Recovered . | . . . . . Used . | . . . . . Hacking Detections 3 | . 2 . . 1 Full Trace Events 3 | . 2 . . 1 Feedback Events . | . . . . . Feedback Blocked . | . . . . . Robot Schematics Acquired . | . . . . . Robots Built . | . . . . . Authchips . | . . . . . Time . | . . . . . Total Robot Build Rating . | . . . . . Part Schematics Acquired 4 | . . . . 4 Parts Built . | . . . . . Authchips . | . . . . . Time . | . . . . . Total Part Build Rating . | . . . . . Parts Repaired . | . . . . . Time . | . . . . . Parts Recycled . | . . . . . Recycled Matter . | . . . . . Retrieved Matter . | . . . . . Retrieved Components . | . . . . . Parts Scanalyzed 4 | . . . . 4 Part Schematics Acquired 4 | . . . . 4 Parts Damaged 1 | . . . . 1 Bothacking | -11 -10 -10 -9 -8 ------------ Run | Yrd Mat Min Mat Mat Used RIF Installer . | . . . . . Robots Hacked . | . . . . . Non-combat . | . . . . . Combat . | . . . . . Robot Hacks Applied . | . . . . . Relay Couplers Released . | . . . . . Fabnet Peak Effective % . | . . . . . Robots Rewired . | . . . . . Allies Hacked . | . . . . . Hacks Repelled . | . . . . . Allies | -11 -10 -10 -9 -8 -------- Run | Yrd Mat Min Mat Mat Total Allies . | . . . . . Largest Group . | . . . . . Highest-Rated Group . | . . . . . Highest-Rated Ally . | . . . . . Total Orders . | . . . . . Ally Attacks . | . . . . . Total Damage . | . . . . . Kills . | . . . . . Allies Corrupted . | . . . . . Allies Melted . | . . . . . Intel | -11 -10 -10 -9 -8 ------- Run | Yrd Mat Min Mat Mat Robot Analysis Total . | . . . . . Derelict Logs Recovered . | . . . . . Drone Launches . | . . . . . Drone Recoveries . | . . . . . Exploration | -11 -10 -10 -9 -8 ------------- Run | Yrd Mat Min Mat Mat Turns Passed 1888 | 112 733 215 379 449 Spaces Moved 1508 | 137 620 160 361 230 Core 201 | 63 134 . . 4 Treads . | . . . . . Legs 1 | . . . . 1 Wheels 725 | 74 486 129 . 36 Hover 581 | . . 31 361 189 Flight . | . . . . . Fastest Speed 50 | 50 50 77 74 74 Average Speed 93 | 66 92 89 84 127 Slowest Speed 550 | 80 200 150 150 550 Overloaded Moves . | . . . . . Propulsion Burnouts . | . . . . . Robots Hopped . | . . . . . Cave-ins Triggered . | . . . . . Exploration Rate (%) 25 | 8 36 39 24 18 Regions Visited 4 Branch Regions 1 Pre-discovered Areas . | . . . . . Known Exits Taken . | . . . . . Unknown Exits Taken 4 | 1 1 1 1 . Scrap Searched 1 | . . 1 . . Spaces Dug . | . . . . . Terrain Destroyed 47 | . 14 3 30 . Melee . | . . . . . Projectile . | . . . . . AOE 47 | . 14 3 30 . Terrain Rammed . | . . . . . Walls Destroyed . | . . . . . Machines Disabled . | . . . . . Actions | -11 -10 -10 -9 -8 --------- Run | Yrd Mat Min Mat Mat Total 1869 | 152 743 231 423 320 Wait 178 | . 65 56 25 32 Move 1504 | 136 619 159 360 230 Hop . | . . . . . Pick Up 47 | 8 14 5 12 8 Fast Attach 1 | . . 1 . . Attach 35 | 5 11 3 7 9 Detach 7 | . 2 2 2 1 Swap 11 | . 4 2 3 2 Drop 13 | . 6 2 2 3 Fire 37 | 3 22 1 10 1 Melee 36 | . . . 2 34 Ram . | . . . . . Kick . | . . . . . Crush . | . . . . . Escape Stasis . | . . . . . Rewire . | . . . . . Trap . | . . . . . Miscellaneous . | . . . . . Route ------- -11/Scrapyard -10/Materials -10/Mines -9/Materials -8/Materials (discovered 1 exit: [*Sto]) History --------- Turn | Location | Event 2 | -11/Scrapyard | Met Revision 17 91 | -11/Scrapyard | Discovered new exit (range 8) 113 | -11/Scrapyard | Entered Materials 329 | -10/Materials | Discovered new exit (range 16) 570 | -10/Materials | Core integrity fell below 50% 604 | -10/Materials | Build established: Infiltrator-Mutant 604 | -10/Materials | Lost 4 parts (1n3w) 712 | -10/Materials | Lost 3 parts (1p1n1w) 846 | -10/Materials | Entered Mines 891 | -10/Mines | Met a Derelict testing a Signal Generator 897 | -10/Mines | Found Signal Generator 942 | -10/Mines | Found a damaged Exp. Sensor Array with a note attached 944 | -10/Mines | Found Prototype Device 945 | -10/Mines | Identified Exp. Sensor Array 1001 | -10/Mines | Assembled infested the area 1001 | -10/Mines | Discovered new exit (range 5) 1006 | -10/Mines | Assisted by a Guerilla fighting off Assembled 1061 | -10/Mines | Entered Materials 1061 | -9/Materials | Evolved 2 slots: Propulsion x1, Utility x1 1436 | -9/Materials | Discovered new exit (range 7) 1440 | -9/Materials | Entered another Materials area 1440 | -8/Materials | Evolved 2 slots: Power x1, Utility x1 1559 | -8/Materials | Discovered new exit (range 10) 1622 | -8/Materials | Lost 3 parts (1p1u1w) 1786 | -8/Materials | Core integrity fell below 50% 1830 | -8/Materials | Lost 5 parts (1p2n2w) 1863 | -8/Materials | Core integrity fell below 20% 1889 | -8/Materials | Destroyed by X-62 Marksman with Gauss Rifle Last Messages --------------- K-01 Serf collects debris. R-06 Scavenger collects Corrupted Gauss Rifle. K-01 Serf collects debris. Cmb. Airjet blasted off. Knocked back. Penetrated by Slug. Acquired 2 matter. K-01 Serf collects debris. Slug penetrates Door. Knocked back. K-01 Serf collects debris. Aluminum Leg destroyed. U-05 Engineer builds a Door. Penetrated by Slug. Actuator Array destroyed. ECM Suite destroyed. Penetrated by Slug. X-62 Marksman knocked back. Penetrated by Slug. [Achievement: First Step to Greatness] Map ----- +----------------------------------------------------+ | ?????????????????????????????????????????????????? | | ?????????????????????????????????????????????????? | | ?????????????????????????????????????????????????? | | ?????????????????????????????????????????????????? | | ?????????????????????????????????????????????????? | | ?????????????????????????????????????????????????? | | ?????????????????????????????????????????????????? | | ?????????????????????????????????????????????????? | | ?????????????????????????????????????????????????? | | ?????????????????????????????????????????????????? | | ?????????????????????????????????????????????????? | | ?????????????????????????????????????????????????? | | ?????????????????????????????????????????????????? | | ?????????????????????????????????????????????????? | | ?????????????????????######?????????????? ???????? | | ????????????????????? ????????????? ???????? | | ?????????????????????? ???????????? ##?????? | | ?????????????????????? ????????????? ##?????? | | ??????????????????????# #?######### ##?????? | | ??????????????????????# ############### ##?????? | | ??????????????????????# # " " """ ## #### | | ??????????????????????# # """ """"" ## #######+ | | ??????????????????????# # "" " " ## | | ??????????????????????# # k ## | | ?????????????????????## # % ## | | ?????????????????????## @;#####"###+### | | ????????????????? ! ; u %% | | ???????????????# # xx H | | ???????????????# """? # | | ???????????????? "??? + | | ???????????????????" # ################ ####### | | ????????????????? # r###### ######### # | | ????????????????#####?# #????????????? # # "" | | ?????????????????????# ????????????? # # ""S | | ?????????????????????# T" ????????????? # / "" | | ?????????????????????# " ????????????? # # =%[ | | ?????????????????????# ????????????? #%# / ] [ | | ?????????????????????# ????????????? # ####### | | ?????????????????????## #?????????????## ####### | | ???????????????????????? ??????????????## ##????? | | ???????????????????????? ??????????????## ##????? | | ???????????????????????? ???????????????## ##????? | | ????????????????????????????????????????## ##????? | | ????????????????????????????????????????## ##????? | | ????????????????????????????????????????## ##????? | | ?????????????????????????????????????????# #?????? | | ?????????????????????????????????????????#+#?????? | | ????????????????????????????????????????? ?????? | | ?????????????????????????????????????????????????? | | ?????????????????????????????????????????????????? | +----------------------------------------------------+ Best States ------------- Heat Dissipation 31 Energy Generation 19 Energy Capacity 430 Matter Stores 359 Matter Capacity 500 Sight Range 16 Robot Scan Range 20 Terrain Scan Density 10 ECM Strength 1 Evasion (%) 50 Item Schematics ----------------- Maul | -8/Materials | Scanalyzed Lrg. Storage Unit | -8/Materials | Scanalyzed Seismic Detector | -8/Materials | Scanalyzed Flail | -8/Materials | Scanalyzed Robot Schematics ------------------ None Fabricated ------------ Nothing Alien Tech Used ----------------- None Achievements -------------- Everything Is Under Control First Step to Greatness I Survived The Infestation One Hack Too Far Power Corrupts Risk Taker Uninvited Guest Challenges ------------ None Game ------ Seed CannonSubatomicConstruct Manual? 0 Play Time 00:50:01 Cumulative 0.8 hours Start 2025.01.05 @ 17:42:50 End 2025.01.05 @ 18:33:33 Sessions 1 Manual Loads 0 Difficulty Rogue Special Mode None Game No. 1 Rogue 1 Adventurer 0 Explorer 0 Win Type - Total 0 Types 0/0/0/0/0/0/0/0/0 Lore% 0 Gallery% 2 Achievement% 2 Wizard Run 0 Options --------- Layout 1 ASCII 0 Keyboard 0 Movement Mouse Keybinds 0 Fullscreen 1 Font 24/Smallcaps Map View 50x35 Zoom Use 0% Tactical HUD 0 Map Filters NONE Filters NONE Steam 1 RUN: 756dd41a-e578-417c-b0a9-e65ce73b0cfa